bitfinex/quotes_ETHUSD_20241212
["timestamp","ask_amount","ask_price","bid_price","bid_amount"]
[1733993558789,2.83185959,3916.9,3916.1,0.7558]
[1733993559197,1.6196923,3916.9,3916.1,0.7558]
[1733993559496,0.55,3916.7,3916.1,0.7558]
[1733993560389,1.6196923,3916.7,3916.1,0.7558]
[1733993560762,0.55,3916.5,3916.1,0.7558]
[1733993561290,0.55,3916.6,3916.1,0.7558]
[1733993561507,0.55,3916.6,3915.8,2.55374]
[1733993561508,0.55,3916.6,3915.8,3.30954]
[1733993561644,1.6196923,3916.6,3915.9,0.88328241]
[1733993562795,1.6196923,3916.6,3915.8,3.30953]
[1733993563087,1.6196923,3916.6,3915.9,0.88331977]
[1733993563682,1.6196923,3916.6,3915.8,3.30953]
[1733993563890,2.8340956,3916.6,3915.8,3.30953]
[1733993564083,0.55,3916.4,3915.8,3.30953]
[1733993565648,0.55,3916.4,3915.8,0.7558]
[1733993566275,0.55,3916.4,3915.6,2.55386]
[1733993566276,0.55,3916.4,3915.6,3.30966]
[1733993566589,1.6196923,3916.4,3915.7,0.88371163]
[1733993568260,1.6196923,3916.4,3915.6,3.30966]
[1733993568457,0.55,3916.4,3915.7,0.883649]
[1733993568787,1.6196923,3916.4,3915.7,0.883649]
[1733993569005,0.55,3916.2,3915.6,0.7558]
[1733993569398,0.55,3916.3,3915.6,0.7558]
[1733993569544,1.6196923,3916.3,3915.6,0.7558]
[1733993570289,0.55,3916.3,3915.6,0.7558]
[1733993570493,1.6196923,3916.3,3915.6,0.7558]
[1733993570848,1.6196923,3916.3,3915.5,2.55394]
[1733993571119,1.6196923,3916.3,3915.4,0.7558]
[1733993571395,0.55,3916.1,3915.4,0.7558]
[1733993571755,1.6196923,3916.1,3915.4,0.7558]
[1733993572561,0.55,3916.1,3915.4,0.7558]
[1733993572949,1.6196923,3916.1,3915.4,0.7558]
[1733993573468,0.55,3916.1,3915.4,0.7558]
[1733993575872,0.55,3916.2,3915.4,0.7558]
[1733993577119,0.55,3916.2,3914.8,4.15067961]
[1733993577120,0.55,3915.7,3914.8,0.8168]
[1733993577284,1.33145643,3915.5,3914.8,0.8168]
[1733993577622,0.55,3915.4,3914.8,0.8168]
[1733993578178,0.55,3915.4,3914.8,3.37119]
[1733993578658,0.55,3915.7,3914.8,3.37119]
[1733993579604,0.55,3915.5,3914.5,0.8168]
[1733993579806,0.55,3915.5,3914.6,0.88267705]
[1733993580014,0.55,3915.5,3914.5,3.37138]
[1733993580195,0.55,3915.5,3914.6,0.88266774]
[1733993580399,0.55,3915.5,3914.5,3.37138]
[1733993580940,0.55,3915.7,3914.7,2.55446]
[1733993582329,0.55,3915.7,3914.5,3.37139]
[1733993582702,3.10385,3915.7,3914.5,3.37139]
[1733993583121,0.55,3915.5,3914.5,3.37139]
[1733993583340,0.55,3915.2,3914.5,0.8168]
[1733993583493,1.88145643,3915.2,3913.9,1.06421307]
[1733993583694,1.88145643,3915.2,3914.0,3.02186513]
[1733993583898,1.88145643,3915.2,3914.0,0.8168]
[1733993584200,1.88145643,3915.2,3914.1,0.8819851]
[1733993584394,1.88145643,3915.2,3914.1,3.4368451]
[1733993584600,1.88145643,3915.2,3914.1,2.55486]
[1733993585697,4.43560643,3915.2,3914.1,2.55486]
[1733993586491,4.43560643,3915.2,3914.0,0.8168]
[1733993586492,0.55,3915.0,3914.0,0.8168]
[1733993586693,3.10428,3915.0,3914.0,0.8168]
[1733993587542,0.55,3914.8,3914.0,0.8168]
[1733993587834,0.55,3914.8,3913.7,0.7781]
[1733993588034,0.55,3914.8,3913.7,3.33321]
[1733993588735,3.10442,3914.8,3913.7,3.33321]
[1733993589039,3.10442,3914.8,3913.7,0.7781]
[1733993589521,0.55,3914.5,3913.7,0.7781]
[1733993589698,3.10461,3914.5,3913.4,2.55525]
[1733993590350,0.51,3914.5,3913.5,2.55524]
[1733993590853,0.51,3914.5,3913.3,0.7781]
[1733993591149,0.51,3914.5,3913.6,2.55518]
[1733993594309,0.51,3914.5,3913.7,2.5551]
[1733993595168,0.12640671,3914.8,3913.3,0.7781]
[1733993595169,0.55,3914.7,3914.0,2.55492]
[1733993595863,0.55,3914.7,3913.5,3.33335]
[1733993596014,0.55,3914.7,3913.8,2.55504]
[1733993597127,0.55,3914.8,3913.8,2.55504]
[1733993598062,3.10441,3914.8,3913.6,2.55518]
[1733993598669,0.55,3914.8,3913.7,2.55511]
[1733993598872,0.55,3914.8,3913.7,2.55507]
[1733993599584,0.55,3914.8,3913.8,2.55505]
[1733993600675,0.55,3914.8,3913.9,2.55499]
[1733993601374,0.55,3914.8,3914.0,2.55489]
[1733993601732,0.55,3914.8,3914.1,2.55485]
[1733993602581,3.6234423,3915.9,3914.7,2.55445]
[1733993602762,3.88520643,3915.9,3914.7,2.55447]
[1733993602943,3.88520643,3915.9,3914.4,0.7781]
[1733993602944,0.50684969,3915.7,3914.4,3.33274]
[1733993603144,2.55356,3916.1,3914.5,2.5546]
[1733993603381,1.33145643,3916.0,3914.6,2.55453]
[1733993603585,1.33145643,3916.2,3914.6,1.33145643]
[1733993603875,1.33145643,3916.2,3914.5,2.5546]
[1733993603876,1.33145643,3915.9,3915.0,2.55427]
[1733993604729,0.55,3915.8,3915.0,2.55427]
[1733993605344,0.55,3915.8,3914.5,2.5546]
[1733993605543,0.55,3915.8,3914.8,2.55439]
[1733993606001,1.33145643,3915.8,3914.9,2.55434]
[1733993606289,0.55,3915.7,3914.9,2.55434]
[1733993607072,0.55,3915.2,3914.9,2.55434]
[1733993608367,0.55,3915.2,3915.0,2.55424]
[1733993608958,0.55,3915.2,3915.1,2.55421]
[1733993612159,0.51589236,3916.0,3915.1,2.55421]
[1733993612507,1.33145643,3916.2,3915.5,2.55393]
[1733993613537,0.55,3916.2,3915.6,2.55386]
[1733993613738,0.55,3915.9,3915.5,2.55395]
[1733993614273,0.12890104,3915.8,3915.5,2.55395]
[1733993614886,0.55,3915.7,3915.5,2.55395]
[1733993618798,0.55,3915.7,3915.0,2.55426]
[1733993619024,0.55,3915.7,3914.8,0.7818]
[1733993619211,0.55,3915.7,3915.3,2.55406]
[1733993619411,0.55,3915.7,3914.8,0.7818]
[1733993619639,0.55,3915.7,3915.4,2.55401]
[1733993619838,0.55,3915.7,3915.5,2.55395]
[1733993624030,0.55,3915.7,3915.6,2.55388]
[1733993628338,0.50328053,3916.3,3915.7,2.55379]
[1733993628543,0.55,3916.2,3915.7,2.55379]
[1733993629261,0.55,3916.2,3915.4,2.55401]
[1733993629612,0.55,3916.2,3915.5,2.55393]
[1733993630457,0.55,3916.2,3915.3,0.7818]
[1733993630641,0.55,3916.2,3915.5,2.55394]
[1733993631215,0.55,3916.2,3915.3,2.55406]
[1733993632609,0.55,3915.9,3915.3,2.55406]
[1733993635979,0.55,3915.9,3915.1,0.7667]
[1733993635980,0.55,3915.9,3915.1,2.55421]
[1733993636677,0.55,3915.9,3914.2,1.06421307]
[1733993636678,1.33145643,3915.7,3914.2,1.06421307]
[1733993636841,0.55,3915.6,3914.7,2.55446]
[1733993638277,0.55,3915.6,3914.4,2.55461]
[1733993638278,0.55,3915.3,3914.4,2.55461]
[1733993638583,1.0728748,3915.3,3914.4,2.55461]
[1733993640448,1.33145643,3915.1,3914.1,0.7889]
[1733993640634,1.33145643,3915.1,3914.0,2.55491]
[1733993640635,0.55,3915.0,3914.0,2.55491]
[1733993641345,0.55,3915.2,3913.8,0.7889]
[1733993641542,0.55,3915.3,3914.3,3.34357]
[1733993641971,0.55,3915.3,3914.4,2.55466]
[1733993642546,0.55,3915.0,3914.4,2.55466]
[1733993643417,0.55,3915.3,3914.5,2.55458]
[1733993643569,0.55,3915.3,3914.6,2.55447]
[1733993643776,0.55,3915.3,3914.7,2.55444]
[1733993644080,2.40114873,3915.7,3914.4,0.02554376]
[1733993644081,0.55,3915.6,3914.8,2.55439]
[1733993644289,0.55,3915.3,3914.9,2.55433]
[1733993647115,0.55,3915.6,3914.9,2.55433]
[1733993647524,1.21333159,3915.6,3915.2,2.55414]
[1733993647694,1.0696923,3915.8,3915.2,2.55414]
[1733993648385,1.0696923,3915.8,3915.1,0.7889]
[1733993648576,1.0696923,3915.8,3915.1,3.34309]
[1733993648577,1.33145643,3915.7,3915.1,3.34309]
[1733993648777,0.55,3915.6,3915.1,2.55419]
[1733993649100,0.55,3915.7,3915.1,2.55419]
[1733993650489,0.55,3915.7,3914.6,1.06421307]
[1733993650681,0.55,3915.7,3914.4,2.41121961]
[1733993650682,0.55,3915.7,3915.0,2.55426]
[1733993654226,0.55,3915.7,3915.1,2.5542]
[1733993654380,0.55,3915.7,3914.8,3.3693]
[1733993654582,0.55,3915.7,3915.2,2.55412]
[1733993654988,1.87081614,3916.2,3915.3,2.55408]
[1733993654989,0.55,3915.9,3915.3,2.55408]
[1733993655206,0.55,3916.0,3915.3,2.55408]
[1733993657821,0.55,3916.0,3915.0,2.55421]
[1733993657822,2.95114873,3916.0,3915.0,2.55421]
[1733993658027,1.21350693,3915.9,3915.0,2.55421]
[1733993658224,2.95114873,3916.0,3915.0,2.55421]
[1733993658431,0.55,3915.8,3915.0,2.55421]
[1733993660623,0.55,3915.8,3914.8,3.3693]
[1733993660836,0.55,3915.8,3914.9,0.88392616]
[1733993660981,2.83325478,3915.8,3914.8,2.5544]
[1733993661187,2.55369,3915.9,3914.8,2.5544]
[1733993661188,0.55,3915.6,3914.8,2.5544]
[1733993661491,2.83338656,3915.6,3914.8,2.5544]
[1733993661637,1.6196923,3915.6,3914.8,2.5544]
[1733993661853,0.55,3915.6,3914.8,2.5544]
[1733993662146,0.55,3915.6,3914.5,0.8149]
[1733993662346,0.55,3915.7,3914.9,2.55432]
[1733993663242,1.6196923,3915.9,3915.0,2.55426]
[1733993663744,2.83338031,3915.9,3915.0,2.55426]
[1733993664598,0.55,3915.9,3915.0,2.55426]
[1733993664848,1.76366071,3915.9,3915.1,0.8225]
[1733993665001,0.55,3915.9,3915.1,3.37669]
[1733993665651,1.7636558,3915.9,3915.1,3.37669]
[1733993665822,0.55,3915.9,3915.1,0.8225]
[1733993666002,0.55,3916.0,3915.3,2.55408]
[1733993666203,0.55,3916.1,3915.3,2.55408]
[1733993666402,0.55,3916.1,3915.5,2.55394]
[1733993666827,1.6196923,3916.2,3915.5,2.55394]
[1733993667026,0.55,3916.2,3915.5,2.55394]
[1733993667429,1.6196923,3916.2,3915.5,2.55394]
[1733993668019,1.76355316,3916.2,3915.2,0.02553808]
[1733993668220,0.55,3916.2,3915.6,2.55388]
[1733993669163,0.67550874,3916.2,3915.6,2.55388]
[1733993672660,0.67550874,3916.2,3915.1,1.88671307]
[1733993672869,0.67550874,3916.2,3915.3,2.55402]
[1733993673294,0.67550874,3916.2,3915.1,0.8225]
[1733993673295,0.67550874,3916.2,3915.4,2.55399]
[1733993676355,0.67550874,3916.2,3915.1,0.8225]
[1733993676573,0.67550874,3916.2,3915.3,2.55406]
[1733993677326,3.22900874,3916.2,3915.1,3.3767]
[1733993677629,0.55,3915.9,3915.1,2.5542]
[1733993678473,1.7634007,3915.9,3915.1,2.5542]
[1733993678679,0.55,3915.9,3915.1,2.5542]
[1733993679089,1.76336052,3915.9,3914.8,3.37685]
[1733993679290,2.83313893,3915.9,3914.9,2.55433]
[1733993679930,1.6196923,3915.9,3914.9,2.55433]
[1733993680228,0.55,3915.6,3914.9,2.55433]
[1733993681631,0.55,3915.6,3914.5,1.06421307]
[1733993681632,0.55,3915.6,3914.6,2.55448]
[1733993681924,0.55,3915.6,3914.7,0.88403451]
[1733993681925,1.33145643,3915.4,3914.7,0.88403451]
[1733993682229,0.55,3915.3,3914.6,2.55448]
[1733993685109,0.55,3915.3,3914.4,3.61886307]
[1733993685341,0.55,3915.3,3914.5,2.21043706]
[1733993685823,0.55,3915.3,3914.4,2.55465]
[1733993688013,0.55,3915.3,3914.5,0.88449384]
[1733993688818,0.55,3915.3,3914.5,3.43909384]
[1733993689028,0.55,3915.3,3914.5,2.5546]
[1733993689230,0.55,3915.3,3914.6,2.55453]
[1733993693721,0.55,3915.4,3914.7,0.84194342]
[1733993693921,2.67548295,3916.1,3914.7,0.84194342]
[1733993693922,2.40114873,3916.0,3915.3,2.55406]
[1733993694235,1.33145643,3916.0,3915.3,2.55406]
[1733993695521,0.55,3915.9,3915.4,2.554]
[1733993698718,1.19520104,3916.2,3915.4,2.554]
[1733993698719,1.88145643,3916.1,3915.4,2.554]
[1733993699569,1.88145643,3916.1,3915.3,0.02553798]
[1733993699861,1.88145643,3916.1,3915.5,2.55393]
[1733993700769,0.55,3916.1,3915.6,2.55387]
[1733993702074,0.55,3916.1,3915.2,1.90614927]
[1733993702241,0.55,3916.1,3915.7,2.55381]
[1733993703230,0.55,3916.1,3915.8,2.55373]
[1733993703552,1.33145643,3916.0,3915.6,2.55388]
[1733993703752,0.55,3915.9,3915.6,2.55388]
[1733993710470,0.55,3915.9,3915.2,0.8164]
[1733993710670,0.55,3915.9,3915.4,2.554]
[1733993713639,1.33145643,3916.0,3915.4,2.554]
[1733993716402,0.55,3915.9,3915.0,1.0684441]
[1733993716535,0.55,3915.9,3915.1,3.43773642]
[1733993716855,0.55,3915.9,3915.1,2.55415]
[1733993718414,2.27914355,3915.9,3915.1,2.55415]
[1733993720306,2.27914355,3915.9,3914.9,2.55434]
[1733993720524,2.27914355,3915.9,3914.7,0.8115]
[1733993720670,2.27914355,3915.9,3915.0,2.55425]
[1733993721579,1.76340298,3915.9,3915.1,2.55419]
[1733993721782,0.55,3915.9,3915.1,2.55419]
[1733993723072,1.33145643,3915.6,3915.1,2.55419]
[1733993723304,0.55,3915.5,3915.3,2.55407]
[1733993723722,0.55,3915.6,3915.3,2.55407]
[1733993729118,0.55,3915.6,3915.4,2.55401]
[1733993730872,0.55,3915.6,3915.3,2.55407]
[1733993731074,0.55,3915.6,3914.9,4.3868341]
[1733993731316,0.55,3916.0,3915.5,2.55388]
[1733993731520,0.55,3916.0,3915.6,2.55387]
[1733993734998,0.55,3916.0,3915.7,2.5538]
[1733993736428,1.33145643,3915.8,3915.5,2.55394]
[1733993736626,1.33145643,3915.8,3915.2,1.0684441]
[1733993736839,1.33145643,3915.8,3915.5,2.55393]
[1733993738628,0.55,3916.0,3915.5,2.55393]
[1733993739640,1.76507318,3916.0,3915.5,2.55393]
[1733993740515,1.76507318,3916.0,3915.2,1.0684441]
[1733993740717,2.83446232,3916.0,3915.3,4.76500323]
[1733993740917,2.83446232,3916.0,3915.4,0.88436929]
[1733993741106,2.83446232,3916.0,3915.3,2.55408]
[1733993741306,2.83446232,3916.0,3915.4,2.21107124]
[1733993741610,2.83446232,3916.0,3915.0,3.6226741]
[1733993741611,0.55,3915.7,3915.0,3.6226741]
[1733993741813,0.55,3915.7,3915.1,2.21157311]
[1733993742014,0.55,3915.7,3915.2,2.21155575]
[1733993742304,0.55,3915.7,3915.0,3.6226741]
[1733993742508,0.55,3915.7,3915.1,2.21148315]
[1733993742703,0.55,3915.7,3915.2,0.88459326]
[1733993742935,0.55,3915.7,3915.0,3.6226741]
[1733993743103,1.76517757,3915.7,3915.1,2.21153878]
[1733993743450,1.76517757,3915.7,3915.2,0.88461551]
[1733993743600,0.55,3915.7,3915.0,3.6226741]
[1733993743808,0.55,3915.7,3915.1,2.21140528]
[1733993744128,0.55,3915.7,3915.2,2.21140528]
[1733993744446,0.55,3915.7,3915.0,3.6226741]
[1733993744647,0.55,3915.7,3915.1,2.21132808]
[1733993744851,0.55,3915.7,3915.2,0.88453123]
[1733993745050,0.55,3915.7,3915.0,3.6226741]
[1733993745213,0.55,3915.7,3915.1,2.21133051]
[1733993745545,0.55,3915.7,3915.2,2.21133051]
[1733993745864,1.33145643,3915.5,3915.0,1.0684441]
[1733993746010,0.55,3915.4,3914.8,3.6228341]
[1733993746208,0.55,3915.4,3914.9,2.21164623]
[1733993746515,0.55,3915.4,3915.0,0.88465849]
[1733993746732,0.55,3915.4,3914.8,3.6228341]
[1733993746933,0.55,3915.4,3914.9,2.21161347]
[1733993747134,0.55,3915.4,3915.0,0.88464539]
[1733993747457,0.55,3915.4,3914.6,1.60266615]
[1733993747458,0.55,3915.4,3914.6,1.0684441]
[1733993747635,0.55,3915.4,3914.7,2.21194141]
[1733993747944,0.55,3915.4,3914.8,2.21194141]
[1733993748152,0.55,3915.4,3914.6,1.0684441]
[1733993748153,0.55,3915.4,3914.9,0.88477656]
[1733993748362,0.55,3915.4,3914.6,3.6229741]
[1733993748527,0.55,3915.4,3914.7,2.21177513]
[1733993748855,0.55,3915.4,3914.8,0.88471005]
[1733993749160,0.55,3915.4,3914.6,2.55453]
[1733993749453,0.55,3915.4,3914.7,0.8846867]
[1733993749665,1.76490256,3915.4,3914.7,0.8846867]
[1733993749819,1.33145643,3915.2,3914.7,0.8846867]
[1733993750016,1.33145643,3915.2,3914.5,1.0684441]
[1733993750358,1.33145643,3915.2,3914.6,0.88470776]
[1733993750511,1.33145643,3915.2,3914.4,3.6231041]
[1733993750711,1.33145643,3915.2,3914.5,2.2114659]
[1733993750911,1.33145643,3915.2,3914.6,2.2114659]
[1733993751151,1.33145643,3915.2,3914.7,0.88458636]
[1733993751452,1.33145643,3915.2,3914.5,2.55458]
[1733993751653,1.33145643,3915.2,3914.6,2.2110651]
[1733993752329,1.33145643,3915.2,3914.7,0.88437982]
[1733993752529,1.33145643,3915.2,3914.5,2.55458]
[1733993752733,1.33145643,3915.2,3914.6,4.76543833]
[1733993752924,1.33145643,3915.2,3914.7,0.88436733]
[1733993753112,0.55,3915.4,3914.7,0.88436733]
[1733993753908,1.33145643,3915.2,3914.7,0.88436733]
[1733993754114,1.33145643,3915.2,3914.8,0.88436733]
[1733993754330,1.33145643,3915.2,3914.6,2.55452]
[1733993754514,1.33145643,3915.2,3914.7,2.21078138]
[1733993756642,1.33145643,3915.2,3914.7,0.88431255]
[1733993756842,1.33145643,3915.2,3914.6,2.55452]
[1733993757043,1.33145643,3915.2,3914.7,0.88409446]
[1733993758742,1.33145643,3915.2,3914.5,1.0684441]
[1733993758987,1.33145643,3915.2,3914.6,0.88403864]
[1733993759198,0.33145643,3915.2,3914.6,0.88403864]
[1733993761066,0.33145643,3915.2,3914.7,0.88383979]
[1733993761239,0.33145643,3915.2,3914.5,3.6230141]
[1733993761443,0.33145643,3915.2,3914.6,2.2096438]
[1733993761946,0.33145643,3915.2,3914.6,0.88385752]
[1733993762149,0.55,3915.1,3914.2,1.8187441]
[1733993762382,1.33145643,3914.9,3914.3,2.21016977]
[1733993762593,1.33145643,3914.9,3914.4,0.88406791]
[1733993762745,1.33145643,3914.6,3914.0,1.0684441]
[1733993762945,1.33145643,3914.6,3913.8,1.60266615]
[1733993762946,1.33145643,3914.6,3914.1,0.88404231]
[1733993763159,1.33145643,3914.6,3913.8,1.0684441]
[1733993763696,1.33145643,3914.6,3913.8,3.27902457]
[1733993763905,1.33145643,3914.6,3913.9,2.21058047]
[1733993764056,1.33145643,3914.6,3914.0,0.88423219]
[1733993764404,1.84200298,3914.6,3913.6,4.3896141]
[1733993764697,1.84200298,3914.6,3913.7,2.20964978]
[1733993764902,1.84200298,3914.6,3913.8,0.88385703]
[1733993765409,0.55,3914.5,3913.8,0.88385703]
[1733993765707,0.55,3914.5,3913.6,0.766]
[1733993765886,0.55,3914.5,3913.5,3.6236741]
[1733993765887,1.33145643,3914.3,3913.7,0.88367632]
[1733993766059,1.33145643,3914.3,3913.5,2.55523]
[1733993770307,0.55,3914.2,3913.4,0.766]
[1733993770622,0.55,3914.2,3913.3,2.55537]
[1733993770962,0.55,3914.2,3913.1,0.766]
[1733993771166,0.55,3913.9,3913.1,0.766]
[1733993772064,0.55,3913.9,3913.1,3.3215]
[1733993773263,1.33145643,3913.7,3912.9,2.55563]
[1733993773462,0.55,3913.9,3912.6,1.0684441]
[1733993773463,1.33145643,3913.1,3912.6,1.0684441]
[1733993773711,1.33145643,3913.1,3912.1,0.766]
[1733993773712,1.33145643,3913.1,3912.5,2.5559]
[1733993774838,1.33145643,3913.1,3912.6,2.55584]
[1733993775038,1.33145643,3913.1,3912.1,0.766]
[1733993775287,1.33145643,3913.1,3912.7,2.55576]
[1733993776545,1.33145643,3913.4,3912.1,0.766]
[1733993776754,3.105,3913.9,3912.4,2.55592]
[1733993776755,0.55,3913.9,3912.4,2.55592]
[1733993777041,0.55,3913.6,3913.1,2.55551]
[1733993777843,0.55,3913.6,3912.8,2.55565]
[1733993778434,1.33145643,3913.4,3912.9,2.55562]
[1733993778876,1.33145643,3913.4,3913.0,2.55558]
[1733993780140,1.33145643,3913.4,3913.3,2.55538]
[1733993782892,0.55,3913.6,3913.4,2.55527]
[1733993784247,0.55,3913.6,3913.5,2.55525]
[1733993787206,1.06598105,3914.9,3914.2,2.55476]
[1733993787407,2.54233477,3915.0,3914.2,2.55476]
[1733993787607,1.33145643,3914.4,3914.2,2.55476]
[1733993787823,1.33145643,3914.4,3914.0,2.55492]
[1733993788268,1.33145643,3914.4,3913.5,3.3177]
[1733993788269,1.33145643,3914.4,3914.1,2.55486]
[1733993788758,0.55,3914.3,3914.1,2.55486]
[1733993788964,1.33145643,3914.3,3914.1,2.55486]
[1733993789410,0.55,3914.2,3914.1,2.55486]
[1733993791116,0.55,3915.2,3913.5,0.7625]
[1733993791261,0.72352784,3915.3,3914.6,2.55453]
[1733993791262,1.33145643,3914.8,3914.6,2.55453]
[1733993791706,1.33145643,3914.9,3914.1,0.7625]
[1733993791870,1.33145643,3914.9,3914.8,2.5544]
[1733993793510,1.33145643,3914.9,3914.5,2.55455]
[1733993793991,0.55,3914.8,3914.5,2.55455]
[1733993795667,1.33145643,3914.6,3914.5,2.55455]
[1733993795891,1.33145643,3914.6,3913.8,0.7625]
[1733993796095,1.33145643,3914.6,3914.2,2.55476]
[1733993796266,1.33145643,3914.6,3914.4,2.55466]
[1733993797564,1.33145643,3914.9,3914.5,2.5546]
[1733993797771,0.55,3914.8,3914.5,2.5546]
[1733993798077,0.55,3914.8,3914.6,2.55453]
[1733993798381,0.55,3914.9,3914.6,2.55453]
[1733993800201,0.55,3914.9,3913.8,0.7625]
[1733993800202,0.55,3914.9,3914.3,2.55469]
[1733993800388,0.55,3914.9,3914.4,2.55466]
[1733993803519,1.33145643,3914.7,3914.4,2.55466]
[1733993805875,1.33145643,3914.7,3913.9,2.55499]
[1733993806040,1.33145643,3914.7,3914.2,2.55476]
[1733993806243,0.55,3914.6,3913.8,2.55505]
[1733993806445,1.33145643,3914.3,3913.8,2.55505]
[1733993807256,0.55,3914.2,3913.7,2.5551]
[1733993807657,0.55,3914.2,3913.5,2.55524]
[1733993807867,0.55,3914.2,3913.6,2.55516]
[1733993808027,1.33145643,3914.0,3913.3,3.31786]
[1733993808227,0.55,3913.9,3913.3,2.55536]
[1733993809447,0.55,3913.9,3913.0,0.7625]
[1733993809448,1.33145643,3913.7,3913.0,0.7625]
[1733993809662,0.55,3913.6,3913.0,2.55557]
[1733993814883,0.55,3913.6,3912.7,3.31824]
[1733993815071,0.55,3913.6,3912.8,2.55569]
[1733993815991,0.55,3913.6,3912.9,2.55563]
[1733993817013,0.55,3913.6,3912.7,0.7625]
[1733993817194,0.55,3913.8,3912.8,0.0255543]
[1733993817364,1.33145643,3914.0,3913.3,2.55538]
[1733993817569,0.55,3913.9,3913.3,2.55538]
[1733993818472,0.55,3913.9,3913.0,2.55552]
[1733993818672,0.55,3913.9,3912.8,2.5557]
[1733993820393,0.55,3913.9,3913.1,2.5555]
[1733993822514,0.67925263,3913.9,3913.1,2.5555]
[1733993824950,0.67925263,3913.9,3912.7,0.7625]
[1733993825152,0.67925263,3913.9,3913.2,2.55544]
[1733993830654,0.55,3913.9,3913.2,2.55544]
[1733993831204,0.55,3913.9,3912.9,2.55561]
[1733993831506,0.55,3913.6,3912.8,2.55571]
[1733993832044,0.67935967,3913.6,3912.8,2.55571]
[1733993834223,0.55,3912.8,3911.7,1.06833989]
[1733993834412,0.55,3912.8,3911.6,2.39870984]
[1733993834413,0.55,3912.8,3911.6,0.7962]
[1733993835018,1.33145643,3912.9,3911.6,0.7962]
[1733993835019,0.55,3912.5,3911.6,0.7962]
[1733993835738,0.55,3912.5,3911.4,3.35278]
[1733993835950,0.55,3912.2,3911.6,2.55647]
[1733993836162,1.33145643,3912.0,3911.6,2.55647]
[1733993836320,1.33145643,3912.0,3911.5,2.55656]
[1733993836321,0.55,3911.9,3911.5,2.55656]
[1733993836817,0.55,3911.9,3911.8,2.55636]
[1733993837042,1.05241422,3912.2,3911.8,2.55636]
[1733993837649,0.55,3912.2,3911.8,2.55636]
[1733993838015,0.55,3912.2,3911.2,2.55676]
[1733993838016,0.55,3912.2,3911.6,2.55649]
[1733993838916,0.55,3912.2,3911.7,2.55643]
[1733993839320,0.55,3912.2,3911.7,2.55638]
[1733993840855,0.55,3912.2,3911.8,2.55636]
[1733993842304,0.55,3912.2,3911.1,0.7962]
[1733993842305,0.55,3912.2,3911.9,2.55629]
[1733993842573,0.55,3912.2,3911.9,2.55625]
[1733993842733,0.55,3912.2,3911.1,0.7962]
[1733993842938,0.55,3912.2,3911.6,2.55645]
[1733993843523,0.55,3912.2,3911.7,2.55642]
[1733993844672,0.55,3912.2,3911.1,0.7962]
[1733993844673,0.55,3912.2,3911.6,2.55647]
[1733993845026,0.55,3911.9,3911.6,2.55647]
[1733993845222,0.55,3911.9,3911.3,2.55669]
[1733993845429,0.55,3913.2,3911.2,2.84451179]
[1733993845643,1.33145643,3912.6,3912.0,2.55622]
[1733993845840,0.55,3912.5,3912.0,2.55622]
[1733993846827,0.55,3912.2,3912.0,2.55622]
[1733993848278,0.55,3912.2,3911.2,2.55676]
[1733993848577,0.55,3912.2,3912.1,2.55617]
[1733993857900,0.55,3912.2,3911.9,2.55629]
[1733993858106,0.55,3912.2,3911.7,2.55642]
[1733993858599,0.55,3912.2,3911.8,2.55635]
[1733993859573,0.55,3912.2,3911.3,2.55663]
[1733993859778,0.55,3912.2,3911.1,0.7962]
[1733993859779,0.55,3912.2,3911.2,2.55676]
[1733993859989,0.55,3912.2,3911.3,2.55663]
[1733993860694,0.55,3912.2,3911.2,2.55676]
[1733993860894,0.55,3912.2,3911.6,2.55647]
[1733993863078,1.88145643,3912.2,3911.6,2.55647]
[1733993863275,1.88145643,3912.2,3911.1,0.7962]
[1733993863493,1.88145643,3912.2,3911.3,2.55662]
[1733993863648,1.88145643,3912.2,3911.4,2.5566]
[1733993866399,0.55,3911.7,3911.4,2.5566]
[1733993868023,0.55,3911.9,3911.4,2.5566]
[1733993871651,0.55,3911.9,3911.4,2.5706522]
[1733993874349,1.88145643,3911.9,3911.4,0.0140522]
[1733993875324,2.12196406,3911.9,3911.4,0.0140522]
[1733993876621,1.88145643,3911.9,3911.4,0.0140522]
[1733993878729,0.55,3911.9,3911.4,2.5706722]
[1733993879565,0.55,3911.9,3911.4,0.0140522]
[1733993879769,0.55,3912.0,3911.6,2.55646]
[1733993880482,1.33145643,3912.1,3911.4,0.0140522]
[1733993880483,0.55,3912.1,3911.4,0.0140522]
[1733993880655,1.19578225,3912.3,3911.3,2.55667]
[1733993880656,0.55,3912.2,3911.7,2.55643]
[1733993881801,0.55,3912.2,3911.7,2.5704822]
[1733993882293,1.61705185,3912.2,3911.7,2.5704822]
[1733993882451,0.55,3912.2,3911.7,2.5704822]
[1733993882887,0.55,3912.2,3911.8,2.55636]
[1733993884067,0.55,3912.2,3911.7,0.0140522]
[1733993884068,0.55,3912.2,3911.9,2.55628]
[1733993885593,0.55,3912.2,3912.1,2.55617]
[1733993885796,1.06705185,3912.8,3911.8,2.55636]
[1733993886001,1.21440576,3912.9,3912.5,2.5559]
[1733993886301,0.52134918,3912.9,3912.5,2.5559]
[1733993886459,1.06705185,3913.1,3912.5,2.5559]
[1733993886656,2.28131308,3913.1,3912.5,2.5559]
[1733993886966,0.1300356,3912.8,3912.5,2.5559]
[1733993887654,0.55,3912.7,3912.5,2.5559]